[Event "Late-Titled-Tuesday-Blitz-October-10-2023"]
[Site "Chess.com"]
[Date "2023.10.10"]
[Round "4"]
[White "cthake"]
[Black "Fore_Man"]
[Result "0-1"]
[WhiteElo "1960"]
[BlackElo "2278"]
[TimeControl "180+1"]
[EndTime "14:36:20 PDT"]
[Termination "Fore_Man won by resignation"]

1. e4 {[%clk 0:03:00.9]} 1... Nf6 {[%clk 0:03:00.9]} 2. e5 {[%clk 0:03:00.2]}
2... Ng8 {[%clk 0:03:01.8]} 3. d4 {[%clk 0:03:00.2]} 3... d6 {[%clk 0:03:01.8]}
4. exd6 {[%clk 0:02:59.2]} 4... cxd6 {[%clk 0:03:01.7]} 5. g3 {[%clk 0:02:59.3]}
5... Nf6 {[%clk 0:03:02.2]} 6. Bg2 {[%clk 0:02:59.5]} 6... Nbd7 {[%clk
0:03:03.1]} 7. b3 {[%clk 0:02:59.4]} 7... g6 {[%clk 0:03:04]} 8. Bb2 {[%clk
0:02:59.5]} 8... Bg7 {[%clk 0:03:04.9]} 9. Ne2 {[%clk 0:02:57.7]} 9... O-O
{[%clk 0:03:05.8]} 10. O-O {[%clk 0:02:57.4]} 10... Nb6 {[%clk 0:03:06.1]} 11.
c4 {[%clk 0:02:56.5]} 11... Qc7 {[%clk 0:03:05.3]} 12. Nd2 {[%clk 0:02:54]}
12... Bf5 {[%clk 0:03:05.3]} 13. Rc1 {[%clk 0:02:53.8]} 13... Qd8 {[%clk
0:03:03.6]} 14. Nf4 {[%clk 0:02:52.2]} 14... Rb8 {[%clk 0:03:03]} 15. d5 {[%clk
0:02:50.4]} 15... Ne8 {[%clk 0:02:58.4]} 16. Bxg7 {[%clk 0:02:49.1]} 16... Nxg7
{[%clk 0:02:59.3]} 17. Nf3 {[%clk 0:02:41]} 17... Bg4 {[%clk 0:02:58.7]} 18. h3
{[%clk 0:02:40.2]} 18... Bd7 {[%clk 0:02:57.6]} 19. h4 {[%clk 0:02:35.5]} 19...
a5 {[%clk 0:02:57.8]} 20. Qd3 {[%clk 0:02:28.9]} 20... a4 {[%clk 0:02:55.1]} 21.
Ng5 {[%clk 0:02:28.3]} 21... axb3 {[%clk 0:02:53.8]} 22. axb3 {[%clk 0:02:28.5]}
22... h6 {[%clk 0:02:52.4]} 23. Nfe6 {[%clk 0:01:58.4]} 23... fxe6 {[%clk
0:02:47.6]} 24. Qxg6 {[%clk 0:01:45.5]} 24... hxg5 {[%clk 0:02:46.7]} 25. Be4
{[%clk 0:01:44.3]} 25... Rf6 {[%clk 0:02:43]} 26. Qh7+ {[%clk 0:01:41.8]} 26...
Kf7 {[%clk 0:02:43.2]} 27. hxg5 {[%clk 0:01:42]} 27... Qh8 {[%clk 0:02:41.6]}
28. g6+ {[%clk 0:01:35.5]} 28... Rxg6 {[%clk 0:02:36.6]} 29. Qxg6+ {[%clk
0:01:31.6]} 29... Kg8 {[%clk 0:02:36.1]} 30. dxe6 {[%clk 0:01:31.3]} 30... Bxe6
{[%clk 0:02:35]} 31. f4 {[%clk 0:01:22.9]} 31... Bf7 {[%clk 0:02:34.9]} 32. Qg4
{[%clk 0:01:21.1]} 32... Qh5 {[%clk 0:02:30.8]} 33. Qxh5 {[%clk 0:01:06.1]}
33... Nxh5 {[%clk 0:02:31.7]} 34. Kg2 {[%clk 0:01:06]} 34... d5 {[%clk
0:02:31.1]} 35. Bf3 {[%clk 0:01:03.6]} 35... dxc4 {[%clk 0:02:27.8]} 36. bxc4
{[%clk 0:01:01.8]} 36... Nf6 {[%clk 0:02:23.5]} 37. c5 {[%clk 0:01:01.4]} 37...
Nbd5 {[%clk 0:02:20.1]} 38. Rfd1 {[%clk 0:00:54]} 38... Ne3+ {[%clk 0:02:19.4]}
39. Kf2 {[%clk 0:00:53.5]} 39... Nxd1+ {[%clk 0:02:19.2]} 40. Rxd1 {[%clk
0:00:53.9]} 40... Kf8 {[%clk 0:02:16.4]} 41. g4 {[%clk 0:00:52.9]} 41... e6
{[%clk 0:02:13.5]} 42. Rb1 {[%clk 0:00:50.1]} 42... Nd5 {[%clk 0:02:12.9]} 43.
Bxd5 {[%clk 0:00:48.3]} 43... exd5 {[%clk 0:02:13.8]} 44. c6 {[%clk 0:00:48.9]}
44... b5 {[%clk 0:02:11.1]} 45. c7 {[%clk 0:00:47.3]} 45... Rc8 {[%clk
0:02:11.2]} 46. Rxb5 {[%clk 0:00:44.9]} 46... Rxc7 {[%clk 0:02:11.5]} 47. Ke3
{[%clk 0:00:45.2]} 47... Ke7 {[%clk 0:02:11.2]} 48. f5 {[%clk 0:00:44]} 48...
Rc3+ {[%clk 0:02:10.4]} 49. Kf4 {[%clk 0:00:43.9]} 49... Rc4+ {[%clk 0:02:10.5]}
50. Kg5 {[%clk 0:00:42.2]} 50... d4 {[%clk 0:02:05.7]} 51. Rb7+ {[%clk
0:00:42.1]} 51... Ke8 {[%clk 0:01:58.3]} 52. Kf6 {[%clk 0:00:42.1]} 52... Rc6+
{[%clk 0:01:56.7]} 53. Ke5 {[%clk 0:00:42.2]} 53... d3 {[%clk 0:01:54.1]} 54.
Rb8+ {[%clk 0:00:39.5]} 54... Ke7 {[%clk 0:01:52.2]} 55. Rb7+ {[%clk 0:00:39.7]}
55... Kf8 {[%clk 0:01:51.3]} 56. Rd7 {[%clk 0:00:36.7]} 56... Bc4 {[%clk
0:01:48.2]} 57. g5 {[%clk 0:00:36.1]} 57... Ke8 {[%clk 0:01:36.6]} 58. Rd4
{[%clk 0:00:35.3]} 58... Rc5+ {[%clk 0:01:28.4]} 59. Kd6 {[%clk 0:00:33]} 59...
Rd5+ {[%clk 0:01:28.3]} 60. Rxd5 {[%clk 0:00:29.8]} 60... Bxd5 {[%clk
0:01:29.2]} 61. Kxd5 {[%clk 0:00:29.9]} 61... d2 {[%clk 0:01:29.5]} 62. f6
{[%clk 0:00:29.5]} 62... d1=Q+ {[%clk 0:01:29.1]} 0-1

[Event "Late-Titled-Tuesday-Blitz-October-10-2023"]
[Site "Chess.com"]
[Date "2023.10.10"]
[Round "4"]
[White "topin8"]
[Black "Horokoskii"]
[Result "1-0"]
[WhiteElo "2422"]
[BlackElo "2105"]
[TimeControl "180+1"]
[EndTime "14:36:21 PDT"]
[Termination "topin8 won by resignation"]

1. e4 {[%clk 0:03:00.2]} 1... e6 {[%clk 0:02:56.4]} 2. d4 {[%clk 0:02:59.6]}
2... d5 {[%clk 0:02:56.2]} 3. Nd2 {[%clk 0:03:00.1]} 3... Nc6 {[%clk 0:02:55.4]}
4. Ngf3 {[%clk 0:02:59.4]} 4... Nf6 {[%clk 0:02:54.4]} 5. Bd3 {[%clk 0:02:56.2]}
5... dxe4 {[%clk 0:02:48.2]} 6. Nxe4 {[%clk 0:02:56.2]} 6... Be7 {[%clk
0:02:46.1]} 7. O-O {[%clk 0:02:52.1]} 7... O-O {[%clk 0:02:43.2]} 8. Re1 {[%clk
0:02:50.5]} 8... Kh8 {[%clk 0:02:39.2]} 9. c3 {[%clk 0:02:49.7]} 9... b6 {[%clk
0:02:37.6]} 10. Nfg5 {[%clk 0:02:45.8]} 10... h6 {[%clk 0:02:31.4]} 11. Nxf6
{[%clk 0:02:44.4]} 11... Bxf6 {[%clk 0:02:29.2]} 12. Nh7 {[%clk 0:02:01.7]}
12... Rg8 {[%clk 0:02:12.8]} 13. Qf3 {[%clk 0:01:40.1]} 13... Bb7 {[%clk
0:02:11.4]} 14. Nxf6 {[%clk 0:01:39.8]} 14... Qxf6 {[%clk 0:02:03.5]} 15. Qe4
{[%clk 0:01:19.2]} 15... Qf5 {[%clk 0:01:46]} 16. Qxf5 {[%clk 0:01:18.6]} 16...
exf5 {[%clk 0:01:46.3]} 17. Bxf5 {[%clk 0:01:19.5]} 17... Rge8 {[%clk
0:01:45.4]} 18. Bf4 {[%clk 0:01:19.2]} 18... Ne7 {[%clk 0:01:37.8]} 19. Bd7
{[%clk 0:01:18]} 19... Nd5 {[%clk 0:01:36.9]} 20. Rxe8+ {[%clk 0:01:15.7]} 20...
Rxe8 {[%clk 0:01:36]} 21. Bxe8 {[%clk 0:01:16.6]} 21... Nxf4 {[%clk 0:01:35.4]}
22. f3 {[%clk 0:01:12]} 22... Kg8 {[%clk 0:01:32.5]} 23. Bb5 {[%clk 0:01:08.7]}
23... g5 {[%clk 0:01:29.9]} 24. Re1 {[%clk 0:01:07.6]} 24... Kf8 {[%clk
0:01:29.8]} 25. Kf2 {[%clk 0:01:04.2]} 25... a6 {[%clk 0:01:28.3]} 26. Re8+
{[%clk 0:01:03.1]} 26... Kg7 {[%clk 0:01:27.7]} 27. Bf1 {[%clk 0:01:02.9]} 27...
Bd5 {[%clk 0:01:26.9]} 28. b3 {[%clk 0:00:59.2]} 28... b5 {[%clk 0:01:26]} 29.
c4 {[%clk 0:00:56.9]} 29... bxc4 {[%clk 0:01:25.1]} 30. Bxc4 {[%clk 0:00:57.3]}
30... Be6 {[%clk 0:01:14.1]} 31. Bxe6 {[%clk 0:00:52]} 31... Nxe6 {[%clk
0:01:15]} 32. Ke3 {[%clk 0:00:49.4]} 32... Kf6 {[%clk 0:01:14.3]} 33. g3 {[%clk
0:00:48.1]} 33... c5 {[%clk 0:01:12]} 34. dxc5 {[%clk 0:00:44.9]} 34... Nxc5
{[%clk 0:01:12.2]} 35. Rc8 {[%clk 0:00:45]} 35... Ne6 {[%clk 0:01:08.4]} 36. Rc6
{[%clk 0:00:14.2]} 36... Ke5 {[%clk 0:01:07.9]} 37. Rxa6 {[%clk 0:00:13.8]}
37... Nc5 {[%clk 0:01:07.3]} 38. Ra5 {[%clk 0:00:13.8]} 38... Kd6 {[%clk
0:01:07.9]} 39. b4 {[%clk 0:00:12.5]} 39... Nd7 {[%clk 0:01:04.6]} 40. Ra6+
{[%clk 0:00:12.7]} 40... Kd5 {[%clk 0:01:03.6]} 41. Rxh6 {[%clk 0:00:13.6]}
41... f5 {[%clk 0:01:03]} 42. a4 {[%clk 0:00:12.4]} 42... Nb8 {[%clk 0:01:02.5]}
43. b5 {[%clk 0:00:12]} 43... Nd7 {[%clk 0:01:02.7]} 44. a5 {[%clk 0:00:11.5]}
44... Nc5 {[%clk 0:01:03.2]} 45. a6 {[%clk 0:00:10.3]} 45... Ke5 {[%clk
0:01:03.8]} 46. a7 {[%clk 0:00:10.3]} 46... f4+ {[%clk 0:01:04.4]} 47. gxf4+
{[%clk 0:00:10.5]} 47... gxf4+ {[%clk 0:01:05]} 48. Ke2 {[%clk 0:00:10.8]} 1-0

[Event "Late-Titled-Tuesday-Blitz-October-10-2023"]
[Site "Chess.com"]
[Date "2023.10.10"]
[Round "4"]
[White "ElCoachRene"]
[Black "PatzerSmashers"]
[Result "0-1"]
[WhiteElo "2164"]
[BlackElo "2394"]
[TimeControl "180+1"]
[EndTime "14:36:22 PDT"]
[Termination "PatzerSmashers won by resignation"]

1. d4 {[%clk 0:03:00.9]} 1... d5 {[%clk 0:02:59.6]} 2. Bf4 {[%clk 0:03:01.4]}
2... c5 {[%clk 0:02:59.2]} 3. e3 {[%clk 0:03:01.7]} 3... Nc6 {[%clk 0:02:59.2]}
4. c3 {[%clk 0:03:01.9]} 4... Qb6 {[%clk 0:02:58.5]} 5. Qb3 {[%clk 0:03:01.4]}
5... c4 {[%clk 0:02:58.3]} 6. Qc2 {[%clk 0:03:01]} 6... e5 {[%clk 0:02:58.1]} 7.
dxe5 {[%clk 0:02:58.2]} 7... Bf5 {[%clk 0:02:57.6]} 8. Qc1 {[%clk 0:02:57.9]}
8... g5 {[%clk 0:02:56.3]} 9. Bg3 {[%clk 0:02:55.3]} 9... h5 {[%clk 0:02:55.3]}
10. h3 {[%clk 0:02:53.3]} 10... Bg7 {[%clk 0:02:51.9]} 11. Nf3 {[%clk
0:02:52.2]} 11... g4 {[%clk 0:02:35.8]} 12. Nd4 {[%clk 0:02:40.9]} 12... Nge7
{[%clk 0:02:30.4]} 13. Nxf5 {[%clk 0:02:35.5]} 13... Nxf5 {[%clk 0:02:29.8]} 14.
Bf4 {[%clk 0:02:25.8]} 14... O-O-O {[%clk 0:02:22.5]} 15. hxg4 {[%clk
0:02:24.7]} 15... hxg4 {[%clk 0:02:21.5]} 16. Rxh8 {[%clk 0:02:22.3]} 16... Rxh8
{[%clk 0:02:22.4]} 17. Na3 {[%clk 0:02:15.5]} 17... Bxe5 {[%clk 0:02:19.7]} 18.
Qd2 {[%clk 0:02:05.2]} 18... Bxf4 {[%clk 0:01:47.1]} 19. exf4 {[%clk 0:02:06.1]}
19... Re8+ {[%clk 0:01:44.1]} 20. Be2 {[%clk 0:02:03.7]} 20... g3 {[%clk
0:01:22.1]} 21. O-O-O {[%clk 0:01:42.2]} 21... gxf2 {[%clk 0:01:20.7]} 22. Bg4
{[%clk 0:01:38.9]} 22... Ne7 {[%clk 0:01:02.4]} 23. Nxc4 {[%clk 0:01:37.5]}
23... Qe6 {[%clk 0:00:40.4]} 24. Ne3 {[%clk 0:01:02]} 24... d4 {[%clk
0:00:20.7]} 25. cxd4 {[%clk 0:00:47.8]} 25... Kb8 {[%clk 0:00:16.9]} 26. Nxf5
{[%clk 0:00:42]} 26... Nxf5 {[%clk 0:00:17.8]} 27. Qxf2 {[%clk 0:00:29.3]} 27...
Qc6+ {[%clk 0:00:14.4]} 28. Qc2 {[%clk 0:00:22]} 28... Qxc2+ {[%clk 0:00:13]}
29. Kxc2 {[%clk 0:00:20.7]} 29... Ne3+ {[%clk 0:00:13.4]} 0-1

[Event "Late-Titled-Tuesday-Blitz-October-10-2023"]
[Site "Chess.com"]
[Date "2023.10.10"]
[Round "4"]
[White "DopplerCharlotteDeWitte"]
[Black "subham777"]
[Result "1-0"]
[WhiteElo "2783"]
[BlackElo "2526"]
[TimeControl "180+1"]
[EndTime "14:36:27 PDT"]
[Termination "DopplerCharlotteDeWitte won on time"]

1. e4 {[%clk 0:03:00.9]} 1... e6 {[%clk 0:02:58.8]} 2. d3 {[%clk 0:02:59.6]}
2... c5 {[%clk 0:02:58.4]} 3. Nd2 {[%clk 0:03:00.5]} 3... Nc6 {[%clk 0:02:58.4]}
4. Ngf3 {[%clk 0:03:00.2]} 4... d6 {[%clk 0:02:58.9]} 5. g3 {[%clk 0:03:00.8]}
5... g6 {[%clk 0:02:59.5]} 6. Bg2 {[%clk 0:03:01.1]} 6... Bg7 {[%clk 0:03:00.1]}
7. O-O {[%clk 0:03:00.8]} 7... Nge7 {[%clk 0:03:00.7]} 8. h4 {[%clk 0:03:00.5]}
8... O-O {[%clk 0:02:56.7]} 9. h5 {[%clk 0:03:00.1]} 9... f5 {[%clk 0:02:51.8]}
10. Nc4 {[%clk 0:02:58.9]} 10... d5 {[%clk 0:02:41.4]} 11. h6 {[%clk 0:02:58]}
11... Bf6 {[%clk 0:02:34.5]} 12. Ne3 {[%clk 0:02:50.2]} 12... d4 {[%clk
0:02:24.1]} 13. Nc4 {[%clk 0:02:45.9]} 13... b5 {[%clk 0:02:20.8]} 14. e5 {[%clk
0:02:41.5]} 14... Bh8 {[%clk 0:02:14.9]} 15. Nd6 {[%clk 0:02:40.1]} 15... Ba6
{[%clk 0:02:01.3]} 16. Bf4 {[%clk 0:02:23.7]} 16... Nd5 {[%clk 0:01:47.8]} 17.
Re1 {[%clk 0:02:16.6]} 17... Nxf4 {[%clk 0:01:38.3]} 18. gxf4 {[%clk 0:02:17.5]}
18... Qd7 {[%clk 0:01:25.6]} 19. Ng5 {[%clk 0:02:16.8]} 19... Rad8 {[%clk
0:01:11.9]} 20. Qf3 {[%clk 0:02:00.2]} 20... Nb4 {[%clk 0:01:05.8]} 21. Rec1
{[%clk 0:01:42.4]} 21... Qe7 {[%clk 0:01:01.3]} 22. a4 {[%clk 0:01:38.8]} 22...
bxa4 {[%clk 0:00:58.3]} 23. Rxa4 {[%clk 0:01:37.4]} 23... Bxe5 {[%clk
0:00:54.3]} 24. fxe5 {[%clk 0:01:30.7]} 24... Qxg5 {[%clk 0:00:53.7]} 25. Rca1
{[%clk 0:01:31.3]} 25... Bb5 {[%clk 0:00:21.1]} 26. Nxb5 {[%clk 0:01:29.5]}
26... Qxh6 {[%clk 0:00:20.1]} 27. Rxa7 {[%clk 0:01:27.6]} 27... Nxc2 {[%clk
0:00:19.4]} 28. Rd1 {[%clk 0:01:22.8]} 28... Nb4 {[%clk 0:00:19.7]} 29. Nd6
{[%clk 0:01:17.5]} 29... Nd5 {[%clk 0:00:18.9]} 30. Qh3 {[%clk 0:01:11.6]} 30...
Qxh3 {[%clk 0:00:16.7]} 31. Bxh3 {[%clk 0:01:11.6]} 31... Nf4 {[%clk 0:00:17.3]}
32. Bf1 {[%clk 0:01:08.3]} 32... Rb8 {[%clk 0:00:17.7]} 33. Rd2 {[%clk
0:00:59.9]} 33... Rb3 {[%clk 0:00:17.5]} 34. Rc2 {[%clk 0:00:59.1]} 34... Rfb8
{[%clk 0:00:17.2]} 35. Rxc5 {[%clk 0:00:58.5]} 35... Rxb2 {[%clk 0:00:17.6]} 36.
Rcc7 {[%clk 0:00:57.8]} 36... Nh5 {[%clk 0:00:17]} 37. Nf7 {[%clk 0:00:49.4]}
37... Rb1 {[%clk 0:00:05]} 38. Nh6+ {[%clk 0:00:48.7]} 38... Kf8 {[%clk
0:00:05.4]} 39. Rxh7 {[%clk 0:00:47.3]} 39... Rxf1+ {[%clk 0:00:02.1]} 40. Kxf1
{[%clk 0:00:47.2]} 40... Rb1+ {[%clk 0:00:03]} 41. Kg2 {[%clk 0:00:47.3]} 1-0

[Event "Late-Titled-Tuesday-Blitz-October-10-2023"]
[Site "Chess.com"]
[Date "2023.10.10"]
[Round "4"]
[White "realmadridfc123"]
[Black "NigelDwarf"]
[Result "1-0"]
[WhiteElo "2813"]
[BlackElo "2543"]
[TimeControl "180+1"]
[EndTime "14:36:35 PDT"]
[Termination "realmadridfc123 won by resignation"]

1. c4 {[%clk 0:03:00.9]} 1... Nf6 {[%clk 0:02:59.6]} 2. Nc3 {[%clk 0:03:00.8]}
2... g6 {[%clk 0:03:00.1]} 3. Nf3 {[%clk 0:03:00.7]} 3... Bg7 {[%clk 0:02:59.9]}
4. e3 {[%clk 0:03:01.3]} 4... O-O {[%clk 0:03:00.3]} 5. d4 {[%clk 0:03:02]} 5...
d6 {[%clk 0:02:59.4]} 6. Bd3 {[%clk 0:03:02.6]} 6... Nc6 {[%clk 0:02:59.3]} 7.
d5 {[%clk 0:03:01.1]} 7... Nb4 {[%clk 0:02:55.7]} 8. Bb1 {[%clk 0:03:00.4]} 8...
e5 {[%clk 0:02:51.7]} 9. O-O {[%clk 0:02:57.5]} 9... a5 {[%clk 0:02:50.6]} 10.
Bd2 {[%clk 0:02:46.9]} 10... Na6 {[%clk 0:02:43.8]} 11. Na4 {[%clk 0:02:46.2]}
11... b6 {[%clk 0:02:42.4]} 12. e4 {[%clk 0:02:43.5]} 12... Nc5 {[%clk
0:02:40.3]} 13. Nc3 {[%clk 0:02:36.1]} 13... h6 {[%clk 0:02:31.6]} 14. a3 {[%clk
0:02:35.6]} 14... a4 {[%clk 0:02:30]} 15. Bc2 {[%clk 0:02:35.8]} 15... Bd7
{[%clk 0:02:30.1]} 16. Ne1 {[%clk 0:02:35.6]} 16... Nh5 {[%clk 0:02:25.5]} 17.
Nd3 {[%clk 0:02:32.7]} 17... Qe8 {[%clk 0:02:18.4]} 18. g3 {[%clk 0:02:26.3]}
18... f5 {[%clk 0:02:09.5]} 19. Nxc5 {[%clk 0:02:23.5]} 19... bxc5 {[%clk
0:02:08.8]} 20. exf5 {[%clk 0:02:24]} 20... gxf5 {[%clk 0:02:08]} 21. Qe2 {[%clk
0:02:02.4]} 21... Rb8 {[%clk 0:02:03.6]} 22. Nb5 {[%clk 0:01:57.2]} 22... Bxb5
{[%clk 0:01:46.9]} 23. cxb5 {[%clk 0:01:58.1]} 23... Ra8 {[%clk 0:01:47]} 24.
Bc3 {[%clk 0:01:55.5]} 24... Qg6 {[%clk 0:01:22.4]} 25. Kh1 {[%clk 0:01:53.7]}
25... Nf6 {[%clk 0:01:20]} 26. Rae1 {[%clk 0:01:39.6]} 26... Kh8 {[%clk
0:01:19.3]} 27. Qf3 {[%clk 0:01:37.6]} 27... e4 {[%clk 0:01:17.9]} 28. Qd1
{[%clk 0:01:37.8]} 28... Rae8 {[%clk 0:01:02.5]} 29. f3 {[%clk 0:01:37.7]} 29...
e3 {[%clk 0:00:55.8]} 30. Qd3 {[%clk 0:01:35.6]} 30... Qg5 {[%clk 0:00:43.9]}
31. Re2 {[%clk 0:01:19.5]} 31... Rf7 {[%clk 0:00:28.4]} 32. Qxf5 {[%clk
0:00:46.6]} 32... Qxf5 {[%clk 0:00:24.1]} 33. Bxf5 {[%clk 0:00:47.5]} 33... Nxd5
{[%clk 0:00:13.2]} 34. Bg6 {[%clk 0:00:47.4]} 34... Nxc3 {[%clk 0:00:08.4]} 35.
bxc3 {[%clk 0:00:47.7]} 35... Rfe7 {[%clk 0:00:06.1]} 36. Bxe8 {[%clk
0:00:47.8]} 36... Rxe8 {[%clk 0:00:04.8]} 37. Rfe1 {[%clk 0:00:48.3]} 37... Bxc3
{[%clk 0:00:04.9]} 38. Rxe3 {[%clk 0:00:48.8]} 38... Rxe3 {[%clk 0:00:05.2]} 39.
Rxe3 {[%clk 0:00:49.7]} 39... Bb2 {[%clk 0:00:05.9]} 40. Re7 {[%clk 0:00:47.7]}
40... Bxa3 {[%clk 0:00:04.9]} 41. Rxc7 {[%clk 0:00:48.1]} 41... Bb4 {[%clk
0:00:03.3]} 42. b6 {[%clk 0:00:48.6]} 42... Ba5 {[%clk 0:00:03.9]} 43. Rc8+
{[%clk 0:00:49.2]} 43... Kg7 {[%clk 0:00:04]} 44. b7 {[%clk 0:00:50.1]} 1-0

[Event "Late-Titled-Tuesday-Blitz-October-10-2023"]
[Site "Chess.com"]
[Date "2023.10.10"]
[Round "4"]
[White "NelsonLinda"]
[Black "rochaaaaaaaaaa"]
[Result "1-0"]
[WhiteElo "2580"]
[BlackElo "2394"]
[TimeControl "180+1"]
[EndTime "14:36:37 PDT"]
[Termination "NelsonLinda won by resignation"]

1. b3 {[%clk 0:03:00.9]} 1... e5 {[%clk 0:02:58.8]} 2. Bb2 {[%clk 0:03:00.7]}
2... Nc6 {[%clk 0:02:59.2]} 3. e3 {[%clk 0:02:59.8]} 3... Nf6 {[%clk 0:02:59.7]}
4. Bb5 {[%clk 0:02:58.7]} 4... e4 {[%clk 0:02:59.5]} 5. d4 {[%clk 0:02:12.8]}
5... Ne7 {[%clk 0:02:58.7]} 6. Nh3 {[%clk 0:02:07.4]} 6... c6 {[%clk 0:02:58.3]}
7. Be2 {[%clk 0:02:07.3]} 7... d5 {[%clk 0:02:57.4]} 8. Nf4 {[%clk 0:02:07.9]}
8... Nf5 {[%clk 0:02:51.8]} 9. c4 {[%clk 0:02:05.8]} 9... Bd6 {[%clk 0:02:50.3]}
10. Nc3 {[%clk 0:02:00.2]} 10... O-O {[%clk 0:02:40.3]} 11. Nh5 {[%clk
0:01:59.3]} 11... Nxh5 {[%clk 0:02:37.1]} 12. Bxh5 {[%clk 0:02:00.2]} 12... Qg5
{[%clk 0:02:25.5]} 13. g3 {[%clk 0:01:46.9]} 13... Be6 {[%clk 0:02:14.8]} 14.
Be2 {[%clk 0:01:45.7]} 14... a6 {[%clk 0:02:09.6]} 15. c5 {[%clk 0:01:43.3]}
15... Bc7 {[%clk 0:02:09.4]} 16. Na4 {[%clk 0:01:43.9]} 16... g6 {[%clk
0:02:04.2]} 17. Qd2 {[%clk 0:01:43.6]} 17... h5 {[%clk 0:01:50.6]} 18. O-O-O
{[%clk 0:01:35.7]} 18... Nh6 {[%clk 0:01:50.1]} 19. Kb1 {[%clk 0:01:32.6]} 19...
Bg4 {[%clk 0:01:50]} 20. h3 {[%clk 0:01:20.6]} 20... Bxe2 {[%clk 0:01:48.9]} 21.
Qxe2 {[%clk 0:01:21.5]} 21... Qf6 {[%clk 0:01:37.7]} 22. Rhg1 {[%clk 0:01:17.5]}
22... Qf3 {[%clk 0:01:37.4]} 23. Qxf3 {[%clk 0:00:52.8]} 23... exf3 {[%clk
0:01:38.3]} 24. g4 {[%clk 0:00:53.7]} 24... h4 {[%clk 0:01:37.5]} 25. Bc3 {[%clk
0:00:51.4]} 25... g5 {[%clk 0:01:36.7]} 26. Bd2 {[%clk 0:00:46.8]} 26... f6
{[%clk 0:01:36.8]} 27. Nb2 {[%clk 0:00:44.3]} 27... Rfe8 {[%clk 0:01:28.3]} 28.
Nd3 {[%clk 0:00:44.5]} 28... a5 {[%clk 0:00:57.4]} 29. a4 {[%clk 0:00:44.4]}
29... Kf7 {[%clk 0:00:51.9]} 30. Ne1 {[%clk 0:00:44.1]} 30... Ng8 {[%clk
0:00:50.7]} 31. Nxf3 {[%clk 0:00:44.1]} 31... Ne7 {[%clk 0:00:50.1]} 32. Ne1
{[%clk 0:00:44.4]} 32... Ng6 {[%clk 0:00:50.4]} 33. Nd3 {[%clk 0:00:44.7]} 33...
Re7 {[%clk 0:00:50.4]} 34. Kc2 {[%clk 0:00:44.7]} 34... Rae8 {[%clk 0:00:50.6]}
35. Rb1 {[%clk 0:00:41.6]} 35... Ra8 {[%clk 0:00:42.1]} 36. Rb2 {[%clk
0:00:41.4]} 36... Nf8 {[%clk 0:00:35.6]} 37. Rf1 {[%clk 0:00:38.2]} 37... Nd7
{[%clk 0:00:35.1]} 38. f4 {[%clk 0:00:26.2]} 38... Kg6 {[%clk 0:00:33.8]} 39.
Rbb1 {[%clk 0:00:21.1]} 39... b6 {[%clk 0:00:32.9]} 40. cxb6 {[%clk 0:00:20.2]}
40... Bxb6 {[%clk 0:00:33.1]} 41. fxg5 {[%clk 0:00:20.5]} 41... fxg5 {[%clk
0:00:33.2]} 42. Rf5 {[%clk 0:00:20.8]} 42... Nf6 {[%clk 0:00:31.5]} 43. Ne5+
{[%clk 0:00:19.2]} 43... Kh6 {[%clk 0:00:30.4]} 44. Rxf6+ {[%clk 0:00:19.4]}
44... Kg7 {[%clk 0:00:30.9]} 1-0

[Event "Late-Titled-Tuesday-Blitz-October-10-2023"]
[Site "Chess.com"]
[Date "2023.10.10"]
[Round "4"]
[White "Mariia89"]
[Black "GiorgianBarbosa"]
[Result "1-0"]
[WhiteElo "2077"]
[BlackElo "2403"]
[TimeControl "180+1"]
[EndTime "14:36:38 PDT"]
[Termination "Mariia89 won on time"]

1. d4 {[%clk 0:02:59.7]} 1... Nf6 {[%clk 0:02:47.3]} 2. Nf3 {[%clk 0:02:59.5]}
2... e6 {[%clk 0:02:46.1]} 3. Bg5 {[%clk 0:02:59.7]} 3... c5 {[%clk 0:02:09.7]}
4. e3 {[%clk 0:02:57.2]} 4... Be7 {[%clk 0:02:09.7]} 5. c3 {[%clk 0:02:57.2]}
5... O-O {[%clk 0:02:09.8]} 6. Nbd2 {[%clk 0:02:56.8]} 6... b6 {[%clk
0:02:10.1]} 7. Bd3 {[%clk 0:02:57.4]} 7... Bb7 {[%clk 0:02:10.4]} 8. Qe2 {[%clk
0:02:46.7]} 8... d6 {[%clk 0:02:09.1]} 9. O-O {[%clk 0:02:41.2]} 9... Nbd7
{[%clk 0:02:07.8]} 10. e4 {[%clk 0:02:41.3]} 10... cxd4 {[%clk 0:02:06.4]} 11.
cxd4 {[%clk 0:02:41.3]} 11... e5 {[%clk 0:02:05.9]} 12. Rac1 {[%clk 0:02:03.9]}
12... h6 {[%clk 0:01:59.9]} 13. Bh4 {[%clk 0:02:01.1]} 13... exd4 {[%clk
0:01:50.5]} 14. Nxd4 {[%clk 0:01:58.8]} 14... Nc5 {[%clk 0:01:48.3]} 15. Nf5
{[%clk 0:01:54.5]} 15... Re8 {[%clk 0:01:45.5]} 16. Bb1 {[%clk 0:01:53.2]} 16...
Bf8 {[%clk 0:01:31.7]} 17. f3 {[%clk 0:01:52.2]} 17... g6 {[%clk 0:01:21.5]} 18.
Ne3 {[%clk 0:01:32.4]} 18... Be7 {[%clk 0:01:14.9]} 19. b4 {[%clk 0:01:20.2]}
19... Ba6 {[%clk 0:01:05.3]} 20. Nec4 {[%clk 0:01:16.4]} 20... Ncd7 {[%clk
0:01:01.3]} 21. Bd3 {[%clk 0:01:15.7]} 21... d5 {[%clk 0:00:57.7]} 22. Nb2
{[%clk 0:00:46.4]} 22... Bxd3 {[%clk 0:00:50.5]} 23. Nxd3 {[%clk 0:00:44.8]}
23... dxe4 {[%clk 0:00:50.5]} 24. fxe4 {[%clk 0:00:43.8]} 24... Nf8 {[%clk
0:00:42.1]} 25. Qf3 {[%clk 0:00:40.7]} 25... N8h7 {[%clk 0:00:40.3]} 26. e5
{[%clk 0:00:38.2]} 26... g5 {[%clk 0:00:24.4]} 27. Bf2 {[%clk 0:00:35.3]} 27...
Bxb4 {[%clk 0:00:20.6]} 28. Nc4 {[%clk 0:00:30.7]} 28... Bf8 {[%clk 0:00:11.9]}
29. exf6 {[%clk 0:00:30]} 29... Rc8 {[%clk 0:00:04.7]} 30. Nde5 {[%clk
0:00:29.6]} 1-0